bitfinex-derivatives/quotes_ETHF0:USTF0_20210703
["timestamp","ask_amount","ask_price","bid_price","bid_amount"]
[1625300815687,4.41054,2188.2,2187.8,5.0]
[1625300815888,4.41054,2188.2,2187.6,1.88222496]
[1625300816488,2.20527,2188.2,2188.0,2.20527]
[1625300818446,2.20527,2188.1,2188.0,2.20527]
[1625300821353,2.20527,2188.1,2187.4,5.0]
[1625300822554,2.20527,2188.1,2188.0,2.20527]
[1625300822654,2.20527,2188.1,2187.7,2.20527]
[1625300824562,2.20527,2187.8,2187.7,4.41054]
[1625300827766,2.20527,2187.8,2187.5,1.34577462]
[1625300828467,2.20527,2187.8,2187.6,2.20527]
[1625300829272,2.20527,2187.8,2187.6,3.55162366]
[1625300830371,2.20527,2187.8,2187.6,1.34635366]
[1625300830479,2.20527,2187.7,2187.6,1.34635366]
[1625300830577,4.80517,2187.7,2187.6,1.34635366]
[1625300830678,4.80517,2187.7,2187.4,1.34704651]
[1625300831287,4.80517,2187.7,2187.5,1.34777791]
[1625300832036,4.80517,2187.7,2187.6,1.34780709]
[1625300836563,4.80517,2187.7,2187.5,1.88738058]
[1625300836859,4.80517,2187.7,2187.6,1.88755635]
[1625300838211,4.80517,2187.7,2187.6,1.34831708]
[1625300841023,2.20527,2187.7,2187.6,4.36981708]
[1625300841420,2.20527,2187.7,2187.6,4.90893174]
[1625300841622,2.20527,2187.7,2187.6,45.26203174]
[1625300841920,2.20527,2187.7,2187.6,4.90893174]
[1625300843326,2.20527,2187.7,2187.6,3.0215]
[1625300843578,2.20527,2187.7,2187.6,4.9087549]
[1625300844379,2.20527,2187.7,2187.6,5.7175891]
[1625300845088,2.20527,2187.7,2187.6,3.0215]
[1625300845488,2.20527,2187.7,2187.6,5.71751654]
[1625300847240,2.20527,2187.7,2187.6,10.71751654]
[1625300847341,1.0,2188.4,2187.6,10.71751654]
[1625300847444,1.0,2189.0,2187.6,10.71751654]
[1625300847543,1.31893652,2189.1,2187.6,10.71751654]
[1625300847792,1.31893652,2189.1,2187.7,0.21060087]
[1625300847945,15.7211,2190.1,2188.4,1.3476449]
[1625300847946,1.32030155,2189.6,2188.4,1.3476449]
[1625300848093,1.32030155,2189.6,2188.8,55.8483]
[1625300848294,1.32030155,2189.6,2188.4,9.0242449]
[1625300848546,1.32053772,2189.7,2188.5,1.34752469]
[1625300848693,2.20527,2189.1,2188.9,5.32217]
[1625300850662,4.41054,2189.1,2188.9,5.32217]
[1625300852170,4.41054,2189.1,2188.9,3.1169]
[1625300853274,4.41054,2189.1,2188.7,2.20527]
[1625300854730,2.20527,2188.8,2188.7,2.20527]
[1625300855832,5.98217,2188.8,2188.7,2.20527]
[1625300855945,5.98217,2188.8,2188.5,1.34720875]
[1625300856192,5.98217,2188.8,2188.3,1.34732962]
[1625300856293,54.1364,2188.4,2188.3,1.34732962]
[1625300856494,54.1364,2188.4,2188.0,7.45365924]
[1625300856495,54.1364,2188.4,2188.1,1.34746732]
[1625300856745,7.62684,2188.2,2188.1,3.55273732]
[1625300856949,7.62684,2188.2,2188.1,2.20527]
[1625300857495,7.62684,2188.2,2187.9,3.5528723]
[1625300859203,7.62684,2188.2,2188.0,1.34797612]
[1625300859804,5.42157,2188.2,2188.0,1.34797612]
[1625300859905,2.20527,2188.2,2188.0,1.34797612]
[1625300860713,2.20527,2188.1,2188.0,1.34797612]
[1625300865929,2.20527,2188.1,2187.9,3.55447198]
[1625300866331,2.20527,2188.1,2188.0,1.3491926]
[1625300866432,2.20527,2188.1,2188.0,4.8149926]
[1625300866683,2.20527,2188.1,2188.0,5.35459933]
[1625300870400,2.20527,2188.1,2188.0,10.35459933]
[1625300870651,2.20527,2188.1,2188.0,11.26809933]
[1625300870851,2.20527,2188.4,2188.0,11.58457]
[1625300870950,2.20527,2188.4,2188.0,28.05791]
[1625300871201,2.20527,2188.4,2188.3,2.6981032]
[1625300871452,2.20527,2188.4,2188.3,7.6981032]
[1625300871602,2.20527,2188.4,2188.3,48.1324032]
[1625300872155,2.20527,2188.4,2188.3,5.0]
[1625300872809,2.20527,2188.4,2188.3,7.20527]
[1625300875860,2.20527,2188.4,2188.3,2.20527]
[1625300875959,2.20527,2188.4,2188.3,7.20527]
[1625300877161,1.98037,2188.4,2188.3,7.20527]
[1625300877765,1.98037,2188.4,2188.3,4.90230505]
[1625300879030,1.98037,2188.4,2188.3,7.20527]
[1625300879129,1.98037,2188.4,2188.3,10.23177]
[1625300881409,14.6485,2189.3,2188.3,10.23177]
[1625300882113,14.6485,2189.3,2188.5,1.88750396]
[1625300882214,14.6485,2189.3,2188.6,1.34821712]
[1625300882875,2.20527,2189.0,2188.9,2.20527]
[1625300884836,2.20527,2189.0,2188.5,1.34811557]
[1625300884934,4.96507,2189.0,2188.5,1.34811557]
[1625300885329,40.6035,2188.6,2188.5,1.34811557]
[1625300885731,40.6035,2188.6,2188.1,1.348395]
[1625300886881,4.41054,2188.2,2188.1,1.348395]
[1625300886981,8.15214,2188.2,2188.0,1.34839941]
[1625300888549,8.15214,2188.2,2188.1,1.34838524]
[1625300889247,8.15214,2188.2,2188.1,1.88765834]
[1625300891611,3.7416,2188.2,2188.1,1.88765834]
[1625300891714,65.93048793,2189.2,2188.1,1.88765834]
[1625300891863,64.6038,2189.2,2188.1,1.88765834]
[1625300892021,14.9832,2189.2,2188.1,1.88765834]
[1625300892114,14.9832,2189.2,2188.1,6.88765834]
[1625300892314,14.9832,2189.2,2188.3,1.34829736]
[1625300892568,14.9832,2189.2,2188.4,1.34821715]
[1625300892865,2.20527,2188.9,2188.8,2.20527]
[1625300893214,42.42037,2188.9,2188.8,2.20527]
[1625300893971,42.42037,2188.9,2188.4,1.34814551]
[1625300894370,42.42037,2188.9,2188.3,6.10714059]
[1625300894519,42.42037,2188.9,2188.3,1.34814059]
[1625300894721,42.42037,2188.9,2188.4,1.34813472]
[1625300894870,2.20527,2188.5,2188.4,3.55340472]
[1625300894972,5.22827,2188.5,2188.4,3.55340472]
[1625300895074,5.22827,2188.5,2188.4,2.20527]
[1625300903465,2.20527,2188.5,2188.4,5.31617]
[1625300903566,1.32831833,2189.1,2188.4,5.31617]
[1625300903917,1.0,2189.5,2188.4,5.31617]
[1625300903918,1.32882797,2189.4,2188.4,5.31617]
[1625300904019,1.32882797,2189.4,2188.6,45.9186]
[1625300904219,1.32882797,2189.4,2188.4,6.66436228]
[1625300904318,1.32896609,2189.6,2188.6,1.34802648]
[1625300904719,56.4812,2189.4,2188.7,1.34797049]
[1625300904970,2.20527,2189.1,2189.0,2.20527]
[1625300906923,4.41054,2189.1,2189.0,2.20527]
[1625300914667,4.41054,2189.1,2188.5,1.34747139]
[1625300914967,2.20527,2189.1,2188.8,2.20527]
[1625300917020,2.20527,2188.9,2188.8,2.20527]
[1625300920325,53.18007,2188.9,2188.8,2.20527]
[1625300920926,2.20527,2188.9,2188.8,2.20527]
[1625300925496,2.20527,2188.9,2188.8,5.95257]
[1625300927676,47.96327,2188.9,2188.8,5.95257]
[1625300928426,2.20527,2188.9,2188.8,5.95257]
[1625300929479,52.59647,2188.9,2188.8,5.95257]
[1625300931081,2.20527,2188.9,2188.8,5.95257]
[1625300932135,53.46297,2188.9,2188.8,5.95257]
[1625300933786,2.20527,2188.9,2188.8,5.95257]
[1625300936458,49.70307,2188.9,2188.8,5.95257]
[1625300936607,2.20527,2188.9,2188.8,5.95257]
[1625300941569,2.20527,2189.1,2188.8,5.95257]
[1625300943272,2.20527,2189.1,2188.9,2.20527]
[1625300950252,57.4242,2189.0,2188.9,2.20527]
[1625300950349,2.20527,2189.1,2188.9,2.20527]
[1625300951253,52.17598922,2189.5,2188.9,2.20527]
[1625300951405,54.38125922,2189.5,2188.9,2.20527]
[1625300951906,3.53445922,2189.5,2188.9,2.20527]
[1625300952917,2.20527,2189.5,2188.9,2.20527]
[1625300953115,55.39317,2189.5,2188.9,2.20527]
[1625300953317,2.20527,2189.1,2188.9,2.20527]
[1625300957225,1.331247,2189.6,2189.1,49.511]
[1625300957324,1.331247,2189.6,2189.2,2.20527]
[1625300958076,40.7989,2189.3,2189.2,2.20527]
[1625300958175,1.331247,2189.6,2189.2,2.20527]
[1625300958726,42.9126,2189.5,2189.2,2.20527]
[1625300959330,2.20527,2189.3,2189.2,2.20527]
[1625300960541,48.86037,2189.3,2189.2,2.20527]
[1625300960951,50.7313587,2189.3,2189.2,2.20527]
[1625300961652,4.0762587,2189.3,2189.2,2.20527]
[1625300964567,4.0762587,2189.3,2188.9,2.20527]
[1625300964768,3.54482378,2189.3,2188.9,2.20527]
[1625300965218,1.33939844,2189.2,2188.9,2.20527]
[1625300965469,2.20527,2189.0,2188.9,2.20527]
[1625300965870,5.61787,2189.0,2188.9,2.20527]
[1625300968124,5.61787,2189.0,2188.6,1.34948813]
[1625300969026,5.61787,2189.0,2188.5,1.34953779]
[1625300969529,5.61787,2189.0,2188.6,2.20527]
[1625300969875,40.1874,2188.8,2188.6,2.20527]
[1625300970276,5.61787,2189.0,2188.6,2.20527]
[1625300971482,3.4126,2189.0,2188.6,2.20527]
[1625300971633,1.33538847,2189.1,2188.6,2.20527]
[1625300971733,1.33470408,2189.2,2188.6,2.20527]
[1625300973534,1.33470408,2189.2,2189.1,4.41054]
[1625300974836,3.54020959,2189.3,2189.1,4.41054]
[1625300976038,54.3016,2189.2,2189.1,4.41054]
[1625300976138,54.3016,2189.2,2188.6,1.3494838]
[1625300976440,55.63842121,2189.2,2188.6,1.3494838]
[1625300976698,1.33682121,2189.2,2188.6,1.3494838]
[1625300976843,1.33682121,2189.2,2188.4,1.88940209]
[1625300976844,1.33682121,2189.2,2188.5,1.34959094]
[1625300977542,2.20527,2188.8,2188.7,2.20527]
[1625300979544,4.41054,2188.8,2188.7,2.20527]
[1625300986575,4.41054,2188.8,2188.7,50.21387]
[1625300986726,4.41054,2188.8,2188.7,2.20527]
[1625300986977,2.20527,2188.8,2188.7,2.20527]
[1625300987777,2.20527,2188.8,2188.7,3.55528999]
[1625300990433,2.20527,2188.8,2188.7,46.67148999]
[1625300990735,2.20527,2188.8,2188.7,3.55528999]
[1625300990835,2.20527,2188.8,2188.7,4.09603754]
[1625300991335,2.20527,2188.8,2188.7,44.42133754]
[1625300992190,2.20527,2188.8,2188.7,4.09603754]
[1625300993845,2.20527,2188.8,2188.7,2.20527]
[1625300994697,2.20527,2188.8,2188.7,4.90753688]
[1625301000780,2.20527,2188.8,2188.7,44.89413688]
[1625301001379,2.20527,2188.8,2188.7,42.19187]
[1625301001531,1.33593295,2189.3,2188.7,48.10417]
[1625301001732,3.54120295,2189.3,2189.2,4.41054]
[1625301001881,1.0,2189.8,2189.2,7.32464]
[1625301001882,1.3363048,2189.6,2189.2,7.32464]
[1625301002184,1.3363048,2189.6,2189.3,5.0]
[1625301002432,0.4168048,2189.6,2189.3,5.0]
[1625301002537,0.68274291,2189.8,2189.5,1.35089842]
[1625301002633,0.68274291,2189.8,2189.7,56.0998]
[1625301002733,0.68274291,2189.8,2189.7,59.1969]
[1625301002834,0.68274291,2189.8,2189.7,64.1969]
[1625301003286,1.87182468,2190.4,2189.7,64.1969]
[1625301003735,1.87182468,2190.4,2190.3,4.41054]
[1625301003836,1.87182468,2190.4,2190.3,12.37474]
[1625301004138,1.87222378,2190.7,2190.3,12.37474]
[1625301004637,1.87222378,2190.7,2190.6,41.516]
[1625301004839,2.20527,2191.1,2190.6,41.516]
[1625301005288,2.20527,2191.1,2190.3,7.37474]
[1625301005438,2.20527,2191.1,2190.3,6.87474]
[1625301005791,2.20527,2191.1,2191.0,2.20527]
[1625301006239,57.01287,2191.1,2191.0,2.20527]
[1625301006339,2.20527,2191.1,2191.0,2.20527]
[1625301006740,2.20527,2191.1,2191.0,4.57647]
[1625301007392,1.29527,2191.1,2191.0,4.57647]
[1625301009499,2.20527,2191.3,2191.0,4.57647]
[1625301009799,2.20527,2191.3,2191.2,2.20527]
[1625301010961,2.20527,2191.7,2191.2,2.20527]
[1625301010962,1.0,2192.0,2191.2,7.20527]
[1625301011064,16.20217202,2192.4,2191.2,7.20527]
[1625301011267,14.3434,2192.4,2191.2,7.20527]
[1625301011417,14.3434,2192.4,2191.3,16.666926]
[1625301011517,14.3434,2192.4,2192.0,55.4138]
[1625301011766,2.20527,2192.4,2192.3,2.20527]
[1625301012017,1.85778388,2192.7,2192.3,2.20527]
[1625301012417,3.45017006,2193.0,2192.3,2.20527]
[1625301012418,1.855789,2192.9,2192.3,2.20527]
[1625301012722,1.85634596,2193.0,2192.3,2.20527]
[1625301013168,18.51047649,2193.6,2192.3,2.20527]
[1625301013169,1.85730463,2193.2,2192.3,2.20527]
[1625301013372,1.85730463,2193.2,2192.3,7.20527]
[1625301013474,2.65329233,2193.3,2192.3,7.20527]
[1625301013475,1.85743922,2193.3,2192.3,7.20527]
[1625301013723,1.85743922,2193.3,2193.1,38.5776]
[1625301013822,1.85743922,2193.3,2193.2,4.41054]
[1625301013923,4.06389655,2193.9,2193.2,4.41054]
[1625301014325,2.20527,2193.9,2193.2,4.41054]
[1625301014823,2.20527,2193.9,2193.2,42.98634]
[1625301015824,1.85541418,2194.5,2193.8,4.41054]
[1625301016879,1.84862541,2195.1,2193.8,4.41054]
[1625301016977,1.84862541,2195.1,2194.2,52.4901]
[1625301017377,1.84868276,2195.3,2194.2,55.8715]
[1625301017832,2.20527,2195.3,2195.2,4.41054]
[1625301019482,15.0996,2196.4,2195.2,4.41054]
[1625301019580,15.0996,2196.4,2195.8,56.6831]
[1625301019781,2.20527,2196.1,2195.9,2.20527]
[1625301023037,2.20527,2196.1,2195.7,2.20527]
[1625301023839,2.20527,2196.1,2196.0,2.20527]
[1625301026698,2.20527,2196.1,2195.7,2.20527]
[1625301026811,4.53867,2196.1,2194.3,15.5835]
[1625301026948,4.53867,2196.1,2194.3,69.5847]
[1625301027399,4.53867,2196.1,2194.4,16.549561]
[1625301027902,2.20527,2195.5,2195.4,2.20527]
[1625301029061,1.0,2197.0,2195.4,2.20527]
[1625301029161,4.759,2197.4,2195.4,4.83527]
[1625301029775,14.6587,2199.0,2195.5,5.0]
[1625301029872,2.20527,2197.6,2197.5,2.20527]
[1625301030524,2.20527,2197.6,2195.7,14.449]
[1625301030824,2.20527,2197.6,2195.4,3.5438]
[1625301031172,2.20527,2197.6,2195.8,16.411338]
[1625301031272,2.20527,2197.6,2195.8,17.328738]
[1625301031376,2.20527,2197.6,2195.8,0.9174]
[1625301031629,2.20527,2197.6,2196.6,57.1871]
[1625301031729,2.20527,2197.6,2196.6,60.9646]
[1625301031878,4.41054,2197.6,2197.5,2.20527]
[1625301032281,15.1073,2199.2,2197.5,2.20527]
[1625301032578,4.759,2199.8,2197.5,2.20527]
[1625301033034,9.759,2199.8,2197.5,2.20527]
[1625301033532,43.8555,2197.7,2197.5,2.20527]
[1625301033634,2.8605,2197.7,2197.5,2.20527]
[1625301033982,4.41054,2197.6,2197.5,2.20527]
[1625301034288,48.54814,2197.6,2197.5,2.20527]
[1625301034835,4.41054,2197.6,2197.5,2.20527]
[1625301036088,45.06044,2197.6,2197.5,2.20527]
[1625301036290,45.06044,2197.6,2195.9,14.8527]
[1625301036639,4.41054,2197.6,2195.9,14.8527]
[1625301036741,4.41054,2197.6,2195.3,5.9062]
[1625301036890,4.41054,2197.6,2196.0,16.428834]
[1625301036992,4.41054,2197.6,2196.0,19.775634]
[1625301037090,2.20527,2197.6,2196.0,19.775634]
[1625301037240,2.20527,2197.6,2196.0,3.3468]
[1625301037542,2.20527,2197.6,2196.1,16.40424]
[1625301037944,2.20527,2197.6,2197.4,2.20527]
[1625301038044,30.1993,2198.9,2197.4,4.90807]
[1625301038145,14.9453,2198.9,2197.4,4.90807]
[1625301038345,4.759,2199.0,2197.4,4.90807]
[1625301038548,4.809,2200.0,2197.4,4.90807]
[1625301039899,2.20527,2198.2,2198.1,2.20527]
[1625301040110,54.2547,2199.0,2198.1,2.20527]
[1625301040901,4.809,2200.0,2198.1,2.20527]
[1625301041553,4.809,2200.0,2198.1,4.53307]
[1625301041905,2.20527,2198.8,2198.7,2.20527]
[1625301042808,2.20527,2198.8,2198.7,1.12670028]
[1625301044009,4.41054,2198.8,2198.7,1.12670028]
[1625301044324,4.41054,2198.8,2198.1,2.20527]
[1625301044417,8.12234,2198.8,2198.1,2.20527]
[1625301044717,45.4167,2198.6,2198.1,2.20527]
[1625301044920,4.41054,2198.8,2198.1,2.20527]
[1625301045934,4.41054,2198.8,2198.6,2.20527]
[1625301045935,2.20527,2198.8,2198.6,2.20527]
[1625301047981,2.20527,2198.7,2198.6,2.20527]
[1625301048880,2.20527,2198.7,2198.1,2.20527]
[1625301049996,7.12154,2198.2,2198.1,2.20527]
[1625301050848,7.12154,2198.2,2197.9,2.20527]
[1625301051347,4.41054,2198.2,2197.9,2.20527]
[1625301052599,4.41054,2198.2,2197.6,2.20527]
[1625301053401,9.41054,2198.2,2196.5,1.0]
[1625301053504,9.41054,2198.2,2196.2,15.4279]
[1625301053605,10.41054,2198.2,2196.2,15.4279]
[1625301053702,10.41054,2198.2,2195.5,1.0]
[1625301054005,2.20527,2197.0,2196.8,2.20527]
[1625301054104,2.20527,2197.0,2196.8,5.87037]
[1625301054606,2.20527,2197.0,2196.8,3.6651]
[1625301055161,2.20527,2197.0,2195.6,1.0]
[1625301055268,52.2562,2196.5,2194.7,1.0]
[1625301055358,56.1843,2196.5,2194.6,14.346]
[1625301055562,56.1843,2196.5,2192.5,15.7044]
[1625301055811,56.1843,2196.5,2192.6,5.0]
[1625301056010,2.20527,2196.0,2195.9,2.20527]
[1625301056225,1.0,2197.2,2195.9,2.20527]
[1625301056312,15.3911,2197.4,2195.9,4.61057]
[1625301056414,15.3911,2197.4,2195.9,10.52217]
[1625301056513,1.1,2197.9,2195.9,10.52217]
[1625301056670,1.1,2199.0,2196.0,1.0]
[1625301056764,16.0864,2199.0,2196.0,1.0]
[1625301056863,16.0864,2199.0,2196.6,46.0352]
[1625301056967,14.9864,2199.0,2196.6,46.0352]
[1625301057064,14.9864,2199.0,2196.6,49.4005]
[1625301057167,15.9864,2199.0,2196.6,49.4005]
[1625301057263,14.9864,2199.0,2196.7,16.385]
[1625301057365,5.0,2198.9,2196.7,16.385]
[1625301057566,5.0,2198.9,2196.6,3.3653]
[1625301058066,2.20527,2197.6,2197.5,2.20527]
[1625301060180,2.20527,2197.6,2197.3,2.20527]
[1625301062088,2.20527,2197.4,2196.9,2.20527]
[1625301062745,2.20527,2197.4,2194.9,1.0]
[1625301062842,1.0,2197.3,2194.8,15.3236]
[1625301063546,10.14077,2197.4,2194.8,15.3236]
[1625301063691,10.14077,2197.4,2194.8,18.9927]
[1625301064151,4.41054,2194.9,2194.8,3.6691]
[1625301065099,4.41054,2194.9,2194.3,2.20527]
[1625301066096,4.41054,2194.9,2194.8,2.20527]
[1625301066997,1.0,2196.4,2194.8,2.20527]
[1625301067098,15.6626,2196.5,2194.8,2.20527]
[1625301067201,15.6626,2196.5,2194.8,5.41457]
[1625301068050,2.20527,2195.3,2195.2,2.20527]
[1625301069155,2.20527,2195.3,2194.8,3.2093]
[1625301070056,2.20527,2195.3,2195.2,2.20527]
[1625301070855,2.20527,2195.3,2193.8,54.7513]
[1625301070856,2.20527,2195.3,2193.8,3.2817]
[1625301071076,5.56797,2195.3,2193.8,3.2817]
[1625301071408,5.0,2195.2,2193.8,3.2817]
[1625301071958,5.56797,2195.3,2193.8,3.2817]
[1625301072062,5.56797,2195.3,2194.2,2.20527]
[1625301072063,2.20527,2195.3,2194.2,2.20527]
[1625301072161,2.20527,2194.4,2194.2,2.20527]
[1625301073872,2.20527,2194.4,2194.0,2.20527]
[1625301074064,2.20527,2194.4,2189.7,14.986]
[1625301074167,2.20527,2194.1,2193.5,2.20527]
[1625301074316,0.9209,2195.7,2193.5,2.20527]
[1625301074417,0.9209,2195.7,2193.5,5.37647]
[1625301074617,15.5616,2196.3,2193.6,5.0]
[1625301074917,15.5616,2196.3,2194.8,39.8792]
[1625301075067,15.5616,2196.3,2194.9,5.0]
[1625301075166,4.759,2198.5,2194.8,42.6428]
[1625301075267,4.759,2198.5,2195.0,5.0]
[1625301075370,4.759,2198.5,2195.0,6.0]
[1625301075470,15.825,2198.3,2195.0,5.0]
[1625301075575,1.0,2198.1,2195.0,6.0]
[1625301075677,1.0,2198.1,2195.0,5.0]
[1625301075993,1.0,2198.1,2195.5,1.15]
[1625301076087,2.20527,2198.2,2198.0,2.20527]
[1625301077290,2.20527,2198.2,2197.7,2.345]
[1625301077990,2.20527,2198.2,2195.9,1.0]
[1625301078139,4.41054,2198.2,2198.1,2.20527]
[1625301078791,4.41054,2198.2,2197.1,3.6523]
[1625301080142,4.41054,2198.2,2198.1,2.20527]
[1625301081348,1.0,2199.6,2198.1,2.20527]
[1625301081450,4.759,2199.7,2198.1,2.20527]
[1625301081552,21.1591,2200.3,2198.1,2.20527]
[1625301081649,20.1591,2200.3,2198.1,2.20527]
[1625301081802,20.1591,2200.3,2198.1,4.60237]
[1625301082149,2.20527,2198.8,2198.7,2.20527]
[1625301084205,2.20527,2198.8,2198.7,4.41054]
[1625301085203,4.67857,2198.8,2196.6,2.6755]
[1625301085354,4.67857,2198.8,2193.5,1.81961267]
[1625301085455,4.67857,2198.8,2195.6,1.0]
[1625301085605,5.67857,2198.8,2194.4,15.7587]
[1625301085707,5.67857,2198.8,2195.9,0.2031519]
[1625301085806,4.67857,2198.8,2195.9,0.2031519]
[1625301085954,4.67857,2198.8,2196.1,16.589765]
[1625301086055,4.67857,2198.8,2196.2,5.0]
[1625301086206,2.20527,2198.5,2198.2,2.20527]
[1625301086454,2.20527,2198.8,2198.2,2.20527]
[1625301088157,2.20527,2198.8,2198.7,2.20527]
[1625301089409,0.05,2200.0,2198.7,2.20527]
[1625301090108,0.05,2200.0,2198.4,3.3009]
[1625301090211,2.20527,2198.9,2198.8,2.20527]
[1625301090410,2.20527,2199.2,2198.8,2.20527]
[1625301090661,3.0085,2200.0,2198.8,2.20527]
[1625301090813,3.0085,2200.0,2198.8,5.93907]
[1625301092170,2.20527,2199.4,2199.3,2.20527]
[1625301092420,5.32097,2199.4,2199.3,2.20527]
[1625301093069,5.32097,2199.4,2198.8,2.20527]
[1625301094187,2.20527,2199.0,2198.8,2.20527]
[1625301094692,2.20527,2199.0,2196.7,1.0]
[1625301094792,2.20527,2199.0,2197.5,5.0]
[1625301095095,2.20527,2199.0,2197.0,3.2475]
[1625301095444,2.20527,2199.0,2197.6,16.619215]
[1625301095596,2.20527,2199.0,2197.1,16.375364]
[1625301095695,2.20527,2199.0,2197.0,3.2475]
[1625301095895,2.20527,2199.0,2197.7,16.522534]
[1625301096247,2.20527,2199.0,2198.8,2.20527]
[1625301098255,0.05,2200.0,2198.8,2.20527]
[1625301100209,2.20527,2199.3,2199.2,2.20527]
[1625301102266,4.41054,2199.3,2199.2,2.20527]
[1625301104419,4.41054,2199.3,2197.7,15.5477]
[1625301104717,4.41054,2199.3,2196.9,57.837]
[1625301104831,5.41054,2199.3,2196.9,54.6179]
[1625301104931,5.41054,2199.3,2196.9,5.0]
[1625301105031,4.41054,2199.3,2197.2,16.406088]
[1625301105235,4.41054,2199.3,2197.2,21.406088]
[1625301105331,4.41054,2199.3,2197.1,16.61731]
[1625301105436,5.41054,2199.3,2196.9,50.8473]
[1625301105543,5.41054,2199.3,2197.3,16.387559]
[1625301105639,4.41054,2199.3,2197.3,16.387559]
[1625301105741,4.41054,2199.3,2197.3,21.387559]
[1625301105841,4.41054,2199.3,2197.3,5.9076]
[1625301106042,0.05,2200.0,2197.3,5.9076]
[1625301106143,0.05,2200.0,2197.4,16.536851]
[1625301106243,2.20527,2199.9,2199.4,2.20527]
[1625301107445,4.60257,2199.9,2199.4,2.20527]
[1625301108298,2.20527,2199.5,2199.4,2.20527]
[1625301109355,2.20527,2199.5,2199.1,2.20527]
[1625301109501,2.20527,2199.5,2197.6,1.0]
[1625301109604,2.20527,2199.5,2197.5,15.2151]
[1625301110104,2.20527,2199.5,2197.6,16.54688]
[1625301110302,2.20527,2199.0,2198.8,2.20527]
[1625301110405,5.44427,2199.0,2198.8,2.20527]
[1625301110556,5.44427,2199.0,2198.6,2.20527]
[1625301112309,5.44427,2199.0,2198.9,2.20527]
[1625301117691,5.44427,2199.0,2197.4,1.0]
[1625301117796,5.44427,2199.0,2196.6,2.75957193]
[1625301117893,5.44427,2199.0,2196.7,1.0]
[1625301118093,5.44427,2199.0,2196.7,5.0]
[1625301118194,6.44427,2199.0,2196.7,5.0]
[1625301118299,6.44427,2199.0,2197.2,16.393867]
[1625301118397,5.44427,2199.0,2198.7,2.20527]
[1625301119199,5.44427,2199.0,2198.4,2.20527]
[1625301120398,4.41054,2198.5,2198.4,2.20527]
[1625301120500,7.50614,2198.5,2198.4,2.20527]
[1625301121301,7.50614,2198.5,2198.1,2.20527]
[1625301122453,2.20527,2198.2,2198.1,4.41054]
[1625301127066,2.20527,2198.2,2196.4,15.6286]
[1625301127765,2.20527,2198.2,2196.5,16.50116]
[1625301127866,2.20527,2198.2,2196.5,21.50116]
[1625301128017,2.20527,2198.2,2196.5,22.40956]
[1625301128416,2.20527,2197.7,2197.6,2.20527]
[1625301130471,4.41054,2197.7,2197.6,2.20527]
[1625301131277,4.41054,2197.7,2197.6,3.11457]
[1625301131378,4.41054,2197.7,2197.6,2.20527]
[1625301132431,4.41054,2197.7,2197.6,3.12227]
[1625301132532,4.41054,2197.7,2197.6,2.20527]
[1625301133381,4.41054,2197.7,2196.4,15.6286]
[1625301133684,5.41054,2197.7,2195.5,0.9176]
[1625301133883,5.41054,2197.7,2195.4,1.8507343]
[1625301134034,5.41054,2197.7,2195.1,3.43707799]
[1625301134035,5.41054,2197.7,2195.1,1.85246003]
[1625301134183,5.41054,2197.7,2195.2,0.20291483]
[1625301134434,2.20527,2196.5,2196.4,2.20527]
[1625301134883,3.4695,2196.7,2196.4,2.20527]
[1625301136439,2.20527,2196.5,2196.4,2.20527]
[1625301136639,2.20527,2196.5,2196.2,2.20527]
[1625301138457,2.20527,2196.3,2196.2,2.20527]
[1625301141749,2.20527,2196.3,2195.0,14.7993]
[1625301142052,3.20527,2196.3,2194.1,2.63952233]
[1625301142401,3.20527,2196.3,2193.9,1.84729078]
[1625301142502,2.20527,2195.4,2195.3,2.20527]
[1625301142752,2.20527,2195.4,2195.0,2.20527]
[1625301144505,2.20527,2195.1,2195.0,2.20527]
[1625301144706,2.20527,2195.1,2194.7,2.20527]
[1625301144805,47.08737,2195.1,2194.7,2.20527]
[1625301145457,2.20527,2195.1,2194.7,2.20527]
[1625301146559,2.20527,2194.8,2194.7,2.20527]
[1625301147011,5.51477,2194.8,2194.7,2.20527]
[1625301147261,5.51477,2194.8,2194.4,2.20527]
[1625301148062,5.51477,2194.8,2193.3,1.0]
[1625301148162,5.51477,2194.8,2193.0,15.4807]
[1625301148518,5.51477,2194.8,2194.3,2.20527]
[1625301150469,2.20527,2194.4,2194.1,2.20527]
[1625301152283,2.20527,2194.4,2193.8,2.20527]
[1625301152487,2.20527,2193.9,2193.8,2.20527]
[1625301152890,2.20527,2193.9,2193.7,2.20527]
[1625301154589,2.20527,2193.9,2193.7,4.41054]
[1625301154889,1.0,2194.8,2193.7,4.41054]
[1625301154991,8.0,2197.3,2193.7,7.84214]
[1625301155090,1.0,2195.5,2193.7,7.84214]
[1625301155893,64.8635,2195.4,2193.7,7.84214]
[1625301156545,2.20527,2194.4,2194.3,2.20527]
[1625301156795,2.20527,2194.4,2193.7,2.20527]
[1625301158613,2.20527,2194.4,2194.1,2.20527]
[1625301159963,2.20527,2194.4,2194.1,5.08477]
[1625301160566,2.20527,2194.4,2194.1,7.29004]
[1625301163220,2.20527,2194.4,2194.1,2.8795]
[1625301163317,2.20527,2194.4,2193.1,0.8997]
[1625301163418,2.20527,2194.4,2193.0,15.4807]
[1625301163770,2.20527,2194.4,2193.0,20.4807]
[1625301163969,2.20527,2194.4,2193.1,16.580381]
[1625301164118,2.20527,2194.4,2193.1,21.580381]